bitfinex/quotes_ETHUSD_20260121
["timestamp","ask_amount","ask_price","bid_price","bid_amount"]
[1769008058880,0.002,2988.7,2987.7,0.57115158]
[1769008059977,0.002,2988.7,2987.4,0.73993457]
[1769008060190,0.002,2988.7,2987.0,10.72635502]
[1769008060374,0.002,2988.7,2987.6,10.72635502]
[1769008060566,0.002,2988.7,2987.7,3.34703551]
[1769008060962,0.002,2988.7,2987.7,6.69409177]
[1769008061488,0.002,2988.7,2987.7,17.42044679]
[1769008061656,0.002,2989.7,2987.8,12.4683997]
[1769008061996,0.002,2989.7,2988.4,10.72635502]
[1769008062157,0.002,2989.7,2988.5,4.673429]
[1769008062355,0.002,2990.0,2988.6,10.72635502]
[1769008062607,0.553,2991.1,2988.9,10.72635502]
[1769008062754,1.49090686,2991.0,2989.3,17.41688456]
[1769008063073,0.002,2991.4,2989.4,38.19371702]
[1769008063275,11.01287957,2991.3,2989.0,0.97649466]
[1769008063474,11.01287957,2991.3,2989.2,3.34537668]
[1769008063681,3.34493369,2991.4,2989.3,10.72635502]
[1769008063884,6.68786738,2991.4,2989.3,10.72635502]
[1769008064086,0.66878674,2991.3,2989.4,1.74171084]
[1769008064279,11.68166631,2991.3,2989.4,1.74171084]
[1769008064481,11.68166631,2991.3,2989.2,17.41708507]
[1769008064682,11.68166631,2991.3,2988.9,0.128]
[1769008064882,11.01287957,2991.1,2988.9,2.29453]
[1769008065085,11.01287957,2991.1,2988.7,10.72635502]
[1769008065393,11.01287957,2991.1,2988.8,3.34581532]
[1769008065594,0.66878674,2991.3,2989.6,9.981745]
[1769008065798,0.002,2991.4,2989.7,10.63123817]
[1769008066372,3.34492155,2991.4,2989.7,10.63123817]
[1769008066572,3.34492155,2991.4,2989.5,0.128]
[1769008066573,0.002,2991.4,2990.0,17.9025839]
[1769008066784,0.002,2991.4,2990.2,20.66401187]
[1769008066988,10.30740893,2992.7,2990.2,20.66401187]
[1769008066989,3.34157588,2992.6,2990.5,40.63123817]
[1769008067185,1.36489848,2992.5,2990.7,40.63123817]
[1769008067496,0.0204971,2992.7,2990.7,10.63123817]
[1769008067694,3.36197146,2992.7,2990.7,10.63123817]
[1769008067882,6.70344582,2992.7,2990.7,10.63123817]
[1769008068191,3.36197146,2992.7,2990.7,10.63123817]
[1769008068397,6.70344582,2992.7,2990.7,10.63123817]
[1769008068601,0.67034458,2992.6,2990.8,1.19425605]
[1769008069002,3.34168755,2992.5,2990.8,1.19425605]
[1769008069204,6.6833751,2992.5,2990.8,1.19425605]
[1769008069609,3.34168755,2992.5,2990.7,6.821987]
[1769008069903,6.6833751,2992.5,2990.6,0.553]
[1769008070070,3.34168755,2992.5,2990.7,2.846816]
[1769008070277,0.67034458,2992.6,2990.8,14.52781946]
[1769008070477,0.002,2992.4,2991.2,7.27134573]
[1769008070687,0.0204971,2992.7,2991.2,7.27134573]
[1769008070975,0.002,2992.6,2991.0,2.187141]
[1769008071175,0.002,2992.6,2991.1,13.315231]
[1769008071375,0.002,2992.6,2990.9,11.18423817]
[1769008071376,0.002,2992.6,2991.3,10.63123817]
[1769008071602,3.34035248,2993.7,2991.5,10.63123817]
[1769008071808,0.002,2993.8,2991.8,7.27134573]
[1769008071809,3.34224512,2993.8,2991.8,7.27134573]
[1769008072021,6.68249024,2993.8,2991.8,7.82434573]
[1769008072223,3.34224512,2993.8,2991.8,0.553]
[1769008072376,3.33932055,2994.7,2991.2,10.02937841]
[1769008072377,10.28691183,2994.8,2992.3,10.63123817]
[1769008072577,0.1812824,2995.4,2991.8,0.128]
[1769008072578,10.28691183,2994.6,2991.8,0.128]
[1769008072913,11.38029456,2994.7,2991.5,3.637827]
[1769008072914,10.28691183,2994.2,2991.5,3.637827]
[1769008073413,10.28691183,2994.2,2991.5,0.553]
[1769008073610,10.28691183,2994.0,2990.8,10.63123817]
[1769008073810,10.28691183,2993.8,2990.9,2.039858]
[1769008073989,10.28691183,2993.6,2991.1,4.544875]
[1769008074315,10.28691183,2993.6,2991.1,3.839875]
[1769008074474,10.28691183,2993.6,2991.2,7.27134573]
[1769008074678,10.28691183,2993.6,2991.0,1.65676629]
[1769008074909,10.28691183,2993.4,2990.7,2.350549]
[1769008075097,10.28691183,2993.4,2990.6,5.639563]
[1769008075301,10.28691183,2993.4,2990.6,4.841337]
[1769008075498,10.28691183,2993.4,2990.6,2.433736]
[1769008075717,16.70285615,2993.5,2990.0,10.63123817]
[1769008075718,10.28691183,2993.0,2990.0,10.63123817]
[1769008075881,7.39934573,2993.3,2988.9,1.61810348]
[1769008075882,10.28691183,2992.8,2990.2,12.41196]
[1769008076082,10.28691183,2992.8,2990.4,6.377219]
[1769008076287,10.28691183,2992.8,2990.3,3.340092]
[1769008076694,2.39290018,2992.9,2990.1,1.06312382]
[1769008076695,10.28691183,2992.0,2990.1,1.06312382]
[1769008076899,10.28691183,2992.6,2990.1,12.505303]
[1769008077083,10.02506265,2992.5,2990.2,2.41479]
[1769008077288,10.02506265,2992.5,2990.0,0.553]
[1769008077289,3.34168755,2992.5,2990.4,10.63123817]
[1769008077587,3.34168755,2992.5,2990.3,7.27134573]
[1769008077588,3.3416072,2992.6,2990.7,6.062513]
[1769008077821,1.83990018,2992.9,2990.8,18.45779717]
[1769008077999,1.83990018,2992.9,2991.1,20.26885517]
[1769008078187,1.83990018,2992.9,2990.9,9.11712545]
[1769008078188,3.34045964,2993.6,2991.3,10.99420904]
[1769008078386,7.70939316,2993.7,2991.6,7.402362]
[1769008078586,7.70939316,2993.7,2991.6,5.59425]
[1769008078801,11.04974415,2993.7,2991.6,4.2176]
[1769008079113,10.57849554,2993.6,2991.2,9.53761527]
[1769008079312,14.39009514,2993.7,2991.3,0.87275962]
[1769008079313,13.07535461,2993.5,2991.3,0.87275962]
[1769008079516,13.07535461,2993.5,2991.0,11.54720904]
[1769008079688,13.07535461,2993.5,2991.2,14.33727139]
[1769008079883,13.07535461,2993.5,2990.9,7.27134573]
[1769008080083,13.07535461,2993.5,2991.1,10.99420904]
[1769008080289,13.07535461,2993.5,2991.3,4.016855]
[1769008080516,1.30753546,2993.4,2991.4,1.5011064]
[1769008080681,11.886031,2993.4,2991.4,1.5011064]
[1769008080888,10.57849554,2993.2,2990.3,7.27134573]
[1769008081153,13.36317776,2993.3,2990.1,7.450577]
[1769008081154,10.57849554,2993.0,2990.1,7.450577]
[1769008081299,10.57849554,2993.0,2990.8,3.642091]
[1769008081495,10.57849554,2993.0,2990.9,5.703387]
[1769008081695,10.57849554,2993.0,2990.2,10.99420904]
[1769008081997,10.57849554,2992.6,2990.3,1.0994209]
[1769008082195,10.57849554,2992.4,2989.4,10.99420904]
[1769008082499,1.18584955,2992.9,2989.3,20.518259]
[1769008082500,11.63634509,2992.9,2989.9,3.34452874]
[1769008082699,10.57849554,2992.7,2990.3,3.34412079]
[1769008082936,10.57849554,2992.7,2990.5,4.56179]
[1769008082937,6.6833751,2992.5,2990.5,4.56179]
[1769008083142,10.02506265,2992.5,2991.4,0.001]
[1769008083314,1.00250627,2992.4,2991.4,0.001]
[1769008083509,0.553,2992.7,2991.4,0.001]
[1769008084165,3.34034806,2993.7,2991.5,13.17099904]
[1769008084440,3.33979026,2994.2,2992.0,6.013236]
[1769008084734,0.553,2994.3,2992.5,10.99420904]
[1769008084903,0.553,2994.3,2992.7,3.34146422]
[1769008085100,6.67846528,2994.7,2992.6,1.4045129]
[1769008085418,10.57849554,2994.6,2992.6,1.4045129]
[1769008085622,10.57849554,2994.6,2992.0,3.04379]
[1769008085929,10.57849554,2994.4,2991.7,3.3425164]
[1769008086139,10.57849554,2994.4,2991.4,0.129]
[1769008086298,10.57849554,2994.2,2991.5,10.922676]
[1769008086644,0.128,2994.1,2991.4,0.001]
[1769008086801,12.20214509,2994.0,2991.4,0.33541251]
[1769008087001,10.57849554,2993.6,2991.4,0.001]
[1769008087426,10.57849554,2993.6,2991.5,2.33879]
[1769008087630,0.553,2993.5,2991.5,4.66379]
[1769008087810,10.57849554,2993.6,2991.5,2.9464]
[1769008088208,10.57849554,2993.6,2991.5,3.83894]
[1769008088414,1.05784955,2993.5,2991.6,0.383994]
[1769008088637,11.63634509,2993.5,2991.4,0.001]
[1769008089004,6.68136566,2993.4,2991.5,3.43068]
[1769008089231,10.02204849,2993.4,2991.4,0.001]
[1769008089429,3.34068283,2993.4,2991.5,4.99314]
[1769008090032,3.34068283,2993.4,2991.4,10.99520904]
[1769008090333,0.33406828,2993.3,2991.5,1.82665548]
[1769008090846,10.91256382,2993.3,2991.4,0.001]
[1769008091009,10.57849554,2993.1,2991.4,0.001]
[1769008091221,10.57849554,2992.9,2991.4,0.001]
[1769008091723,6.6818121,2993.2,2991.4,0.001]
[1769008091970,3.34090605,2993.2,2991.4,0.001]
[1769008092265,6.68024984,2993.9,2991.8,18.42974104]
[1769008092570,6.68024984,2993.9,2991.9,3.26879]
[1769008092865,3.34012492,2993.9,2992.0,21.89623]
[1769008093034,10.01937078,2994.2,2992.0,14.33642308]
[1769008093222,10.01937078,2994.2,2992.1,2.186928]
[1769008093423,1.05713708,2994.1,2992.2,1.65233511]
[1769008093623,11.63563262,2994.1,2992.2,1.65233511]
[1769008093819,11.63563262,2994.1,2991.8,3.34241007]
[1769008094051,0.31106189,2994.0,2991.5,10.99420904]
[1769008094253,0.31106189,2994.0,2991.8,9.58743311]
[1769008094254,0.31106189,2993.9,2991.8,9.58743311]
[1769008094465,0.31106189,2993.9,2991.9,3.34227504]
[1769008094646,6.67958052,2994.2,2992.1,10.99420904]
[1769008094860,6.67958052,2994.2,2992.2,1.76786019]
[1769008094861,1.00192962,2994.1,2992.2,1.76786019]
[1769008095026,1.00192962,2994.1,2992.0,3.34221554]
[1769008095027,10.02004008,2994.0,2992.0,3.34221554]
[1769008095229,6.68002672,2994.0,2992.1,3.17179]
[1769008095422,3.33994285,2994.1,2992.2,10.89236639]
[1769008095620,6.67891132,2994.5,2992.4,10.89236639]
[1769008095823,6.67891132,2994.5,2992.5,0.00685039]
[1769008096072,7.68072847,2994.5,2992.6,1.08992168]
[1769008096223,11.02018413,2994.5,2992.6,1.08992168]
[1769008096962,22.07793708,2994.5,2992.6,1.08992168]
[1769008097162,11.05775295,2994.4,2992.3,3.34183593]
[1769008097459,11.05775295,2994.4,2992.4,3.34179795]
[1769008097661,11.02018413,2994.5,2991.9,0.128]
[1769008097662,4.34127281,2994.5,2992.5,35.58825539]
[1769008097868,4.34127281,2994.5,2991.9,0.128]
[1769008097869,3.33900964,2994.9,2992.7,38.70967939]
[1769008098029,6.67801928,2994.9,2992.8,26.289574]
[1769008098229,6.67788788,2995.0,2993.0,30.0]
[1769008098430,11.36886063,2994.9,2991.6,1.66723554]
[1769008098629,2.13856925,2994.8,2992.7,14.39471239]
[1769008098859,2.13856925,2994.8,2992.8,10.89236639]
[1769008099061,5.47774421,2994.8,2992.9,6.68248186]
[1769008099224,6.67712748,2995.3,2993.1,10.89236639]
[1769008099428,11.36868586,2995.2,2992.5,10.89236639]
[1769008099634,11.05775295,2995.0,2992.6,2.184475]
[1769008099970,11.36868586,2994.9,2992.6,7.25550187]
[1769008100167,11.36868586,2994.8,2992.0,14.23457247]
[1769008100339,11.05775295,2994.5,2992.1,1.42345725]
[1769008100658,1.4478015,2994.7,2991.6,0.001]
[1769008100659,3.443724,2993.8,2991.6,0.001]
[1769008100884,0.128,2994.3,2991.6,0.001]
[1769008100885,11.92068586,2993.7,2991.6,0.001]
[1769008101029,11.05775295,2993.3,2991.6,0.001]
[1769008101228,6.68136566,2993.4,2991.6,0.001]
[1769008101559,10.02204849,2993.4,2991.6,0.001]
[1769008101765,1.00220485,2993.3,2991.6,0.001]
[1769008102228,11.05775295,2993.9,2991.6,10.89336639]
[1769008102423,6.6798036,2994.1,2991.8,4.034447]
[1769008102990,11.05775295,2993.8,2991.6,0.001]
[1769008103276,6.68024984,2993.9,2991.6,0.001]
[1769008103277,11.05775295,2993.6,2991.6,0.001]
[1769008103430,11.05775295,2993.4,2991.6,0.001]
[1769008103630,11.05775295,2993.2,2991.6,0.001]
[1769008103831,11.36874165,2993.1,2991.6,0.001]
[1769008104049,1.44786287,2993.0,2991.6,0.001]
[1769008104256,1.13687417,2993.0,2991.6,0.001]
[1769008104636,12.19462712,2993.0,2991.6,0.001]
[1769008104961,11.05775295,2992.8,2991.6,0.001]
[1769008106167,6.68248186,2992.9,2991.6,0.001]
[1769008106367,0.8371356,2992.8,2991.6,0.001]
[1769008106787,11.89488855,2992.8,2991.6,0.001]
[1769008107188,17.74068139,2992.7,2991.4,0.001]
[1769008107389,3.34146422,2992.7,2991.4,0.001]
[1769008107562,0.41785998,2992.7,2991.4,0.001]
[1769008107901,11.05775295,2993.9,2991.8,0.001]
[1769008108070,1.77380028,2993.7,2992.0,4.22926]
[1769008108266,0.002,2993.9,2991.9,6.847564]
[1769008108477,0.002,2993.9,2991.9,2.184458]
[1769008108678,0.002,2993.9,2991.8,0.001]
[1769008108886,0.002,2993.9,2991.9,2.909107]
[1769008109179,4.44625485,2993.8,2992.1,3.34213428]
[1769008109361,7.78653441,2993.8,2992.0,0.2910107]
[1769008109560,7.78653441,2993.8,2992.0,3.34223727]
[1769008109792,4.44625485,2993.8,2992.0,6.68448325]
[1769008110092,3.3421398,2993.9,2992.0,6.68448325]
[1769008110093,3.34218646,2993.9,2992.1,4.702869]
[1769008110294,0.002,2993.9,2992.1,3.445887]
[1769008110498,0.002,2993.9,2992.2,10.89236639]
[1769008110700,0.002,2993.9,2992.5,19.520208]
[1769008110901,0.002,2993.9,2992.4,10.89236639]
[1769008111101,0.002,2993.9,2991.8,0.129]
[1769008111102,0.002,2993.9,2992.2,3.34202259]
[1769008111313,0.002,2993.9,2992.1,3.34211932]
[1769008111760,0.002,2993.9,2991.8,0.001]
[1769008111964,0.002,2993.9,2991.8,3.34346024]
[1769008112187,1.10597529,2993.8,2992.0,3.342142]
[1769008112494,1.10597529,2993.8,2991.9,0.33434602]
[1769008112659,1.10597529,2993.8,2991.8,0.001]
[1769008113066,6.68069612,2993.7,2991.8,0.001]
[1769008114064,3.34034806,2993.7,2991.9,5.782819]
[1769008114259,1.10597529,2993.8,2991.9,2.592]
[1769008114464,0.002,2993.9,2992.1,10.89236639]
[1769008114717,0.002,2994.1,2992.6,10.89236639]
[1769008114865,0.002,2994.1,2992.8,10.89236639]
[1769008115069,0.002,2994.1,2993.0,3.3411293]
[1769008115290,0.002,2994.1,2992.9,3.34120634]
[1769008115486,0.002,2994.1,2993.0,1.75749092]
[1769008116198,0.002,2994.1,2992.5,3.34162226]
[1769008116568,0.002,2994.1,2992.7,6.669954]
[1769008116887,0.002,2994.1,2992.6,3.34155959]
[1769008117089,0.002,2994.1,2992.3,2.073732]
[1769008117415,3.34058362,2995.3,2993.2,10.89236639]
[1769008117602,6.67916724,2995.3,2993.2,10.89236639]
[1769008118094,6.67916724,2995.3,2992.6,14.5]
[1769008118095,11.36897353,2995.2,2992.7,7.134176]
[1769008118293,0.31122058,2995.1,2992.7,6.229896]
[1769008118496,0.31122058,2995.0,2992.7,2.372196]
[1769008118695,11.36897353,2994.9,2992.8,1.32645624]
[1769008118900,11.05775295,2994.9,2992.5,5.168449]
[1769008119067,11.05775295,2994.9,2992.5,3.247893]
[1769008119272,3.33912114,2994.8,2992.7,24.37275239]
[1769008119600,3.33912114,2994.8,2992.8,10.061985]
[1769008119767,0.002,2995.3,2993.1,10.89236639]
[1769008119969,0.002,2995.3,2992.7,1.6461645]
[1769008119970,3.34058556,2995.3,2993.3,10.89236639]
[1769008120165,6.67917112,2995.3,2993.3,10.89236639]
[1769008120476,3.34058556,2995.3,2993.3,10.89236639]
[1769008120676,6.67917112,2995.3,2993.3,10.89236639]
[1769008121004,6.67917112,2995.3,2993.4,0.001]
[1769008121216,4.02474969,2995.2,2993.6,3.34045964]
[1769008121420,0.002,2995.1,2993.6,6.68091928]
[1769008121718,0.002,2995.1,2993.5,0.8084678]
[1769008121918,0.002,2995.1,2993.4,0.001]
[1769008122217,11.05975295,2995.1,2993.4,0.001]
[1769008122797,11.36867264,2995.0,2993.4,0.001]
[1769008123126,11.60975295,2995.0,2993.4,0.001]
[1769008123319,10.01702892,2994.9,2993.4,0.001]
[1769008123527,2.16267819,2994.8,2993.4,0.001]
[1769008123702,13.22043114,2994.8,2993.4,0.001]
[1769008124994,11.05775295,2994.6,2992.4,3.34176142]
[1769008125222,10.01836698,2994.5,2992.0,10.89236639]
[1769008125424,10.02318514,2994.4,2992.1,8.10773672]
[1769008125630,3.33945566,2994.5,2992.5,10.47683315]
[1769008125791,10.01669448,2995.0,2992.7,10.47683315]
[1769008126000,20.03987962,2995.0,2992.8,3.291]
[1769008126230,2.00418796,2994.9,2992.9,1.29507118]
[1769008126605,12.0273731,2994.9,2992.9,1.29507118]
[1769008126809,10.02318514,2994.7,2992.3,4.743668]
[1769008127009,0.31086429,2994.6,2992.2,10.47683315]
[1769008127233,10.02318514,2994.7,2991.8,0.001]
[1769008127234,10.02318514,2994.3,2991.8,0.001]
[1769008127409,10.02318514,2994.1,2991.8,0.001]
[1769008127629,10.02318514,2993.9,2991.8,1.38304678]
[1769008128627,10.02318514,2993.5,2991.8,0.001]
[1769008128821,10.02318514,2993.3,2991.8,0.001]
[1769008129125,0.3109633,2993.4,2991.8,0.001]
[1769008129126,0.552,2993.4,2991.8,0.001]
[1769008129441,3.34079444,2993.3,2991.8,0.001]
[1769008129609,6.68158888,2993.3,2991.8,0.001]
[1769008129805,0.66815889,2993.2,2991.8,0.001]
[1769008130216,3.34079444,2993.3,2991.8,0.001]
[1769008130217,6.68158888,2993.3,2991.8,0.001]
[1769008130437,3.34079444,2993.3,2991.8,0.001]
[1769008130745,6.68158888,2993.3,2991.8,0.001]
[1769008131162,3.33912114,2994.8,2992.6,10.47683315]
[1769008131358,0.53433091,2994.7,2992.7,7.009001]
[1769008131673,3.87356713,2994.7,2992.8,6.68270514]
[1769008131870,0.53433091,2994.7,2992.9,18.989166]
[1769008132032,2.00418796,2994.9,2993.0,10.47683315]
[1769008132378,3.33889816,2995.0,2993.0,10.47683315]
[1769008132525,6.67779632,2995.0,2993.0,10.47683315]
[1769008132728,6.67779632,2995.0,2992.8,6.68270514]
[1769008132928,6.67779632,2995.0,2992.8,3.34135257]
[1769008133159,10.01669448,2995.0,2992.8,3.34135257]
[1769008133329,1.3128046,2994.9,2992.9,0.33413526]
[1769008133529,6.67824228,2994.8,2992.9,0.33413526]
[1769008133760,6.67824228,2994.8,2992.9,3.67536959]
[1769008134371,6.67824228,2994.8,2993.0,9.676212]
[1769008134570,6.67824228,2994.8,2992.9,0.33413526]
[1769008134769,0.76801117,2994.7,2993.2,0.001]
[1769008135567,6.6786883,2994.6,2993.2,0.001]
[1769008138649,0.002,2995.1,2993.2,10.80578527]
[1769008138854,0.002,2995.1,2993.5,17.629076]
[1769008139046,3.34083219,2995.1,2993.5,2.307]
[1769008139238,4.0089919,2995.1,2993.6,1.31117853]
[1769008139750,4.0089899,2995.1,2993.6,1.31117853]
[1769008139961,0.002,2995.1,2993.7,10.80478527]
[1769008140279,0.002,2995.1,2993.6,7.99209256]
[1769008140280,0.002,2995.1,2993.6,1.31117853]
[1769008140482,6.67958415,2995.1,2993.2,3.34189103]
[1769008140644,10.01838162,2995.1,2993.2,0.001]
[1769008140850,0.002,2995.1,2993.7,10.80478527]
[1769008141030,0.002,2995.1,2993.8,10.80478527]
[1769008141362,0.002,2995.3,2994.0,10.80478527]
[1769008141561,0.002,2995.3,2994.1,6.6798036]
[1769008141780,0.002,2995.3,2994.0,10.80478527]
[1769008142066,0.002,2995.3,2994.0,36.40163899]
[1769008142265,0.1812824,2995.4,2994.2,12.59347]
[1769008142563,0.1812824,2995.4,2994.3,1.63806081]
[1769008142775,0.1812824,2995.4,2993.2,0.001]
[1769008142776,3.51980304,2995.4,2993.2,0.001]
[1769008142975,6.85832368,2995.4,2993.3,10.80478527]
[1769008143182,0.1812824,2995.4,2993.7,10.57203]
[1769008143335,3.51980869,2995.4,2993.9,3.34009215]
[1769008143538,0.1812824,2995.4,2994.1,10.977495]
[1769008143745,0.1812824,2995.4,2994.2,11.90253477]
[1769008144747,6.8582421,2995.4,2994.2,1.0977495]
[1769008144949,3.51973469,2995.4,2993.6,9.15937]
[1769008145289,3.51973469,2995.4,2993.2,0.001]
[1769008145290,0.1812824,2995.4,2994.0,10.80478527]
[1769008145450,0.1812824,2995.4,2994.1,10.80478527]
[1769008145651,0.1812824,2995.4,2994.2,5.4108]
[1769008146277,0.1812824,2995.4,2994.2,15.97515527]
[1769008146483,1.80829761,2998.2,2994.1,3.33985565]
[1769008146484,0.0204971,2998.5,2994.4,33.531]
[1769008146695,0.31074573,2998.4,2996.1,0.2335703]
[1769008146906,10.02551565,2998.5,2996.2,0.78703825]
[1769008146907,12.07619663,2998.3,2996.2,0.78703825]
[1769008147194,10.85982476,2997.7,2995.6,0.17427245]
[1769008147356,10.73182476,2997.4,2995.6,0.17427245]
[1769008147544,10.73182476,2997.4,2995.7,0.28024213]
[1769008147893,10.73182476,2997.2,2995.6,0.12435808]
[1769008148173,10.73182476,2997.0,2995.6,1e-08]
[1769008148350,10.73182476,2997.0,2993.9,18.65646567]
[1769008148351,10.73182476,2996.5,2993.4,4.171961]
[1769008148556,10.73182476,2996.5,2993.5,3.34054293]
[1769008148754,10.73182476,2996.5,2993.6,2.989762]
[1769008149095,10.73182476,2996.3,2993.6,10.80478527]
[1769008149245,1.12838248,2996.2,2993.9,9.43766894]
[1769008149446,1.12838248,2996.2,2994.1,3.33989436]
[1769008149752,6.6753446,2996.1,2994.0,13.648718]
[1769008150069,6.6753446,2996.1,2993.9,6.68024984]
[1769008150070,3.3376723,2996.1,2994.2,11.937173]
[1769008150271,4.1180443,2996.1,2994.4,15.572058]
[1769008150456,3.3376723,2996.1,2994.4,15.572058]
[1769008150657,3.3376723,2996.1,2994.3,2.27419583]
[1769008150851,0.002,2996.6,2994.3,2.27419583]
[1769008150852,3.33753774,2996.3,2994.3,10.80478527]
[1769008151056,3.33722676,2996.5,2994.7,30.0]
[1769008151278,3.33722676,2996.5,2994.7,18.154917]
[1769008151464,0.002,2996.6,2994.9,23.07401627]
[1769008151678,3.33911539,2996.6,2994.3,10.80478527]
[1769008151995,3.33911539,2996.6,2993.9,3.34011832]
[1769008151996,11.0657363,2996.5,2993.9,3.34011832]
[1769008152182,11.0657363,2996.5,2994.0,4.966]
[1769008152591,11.0657363,2996.5,2993.9,3.34011832]
[1769008152889,11.0657363,2996.5,2993.6,10.80478527]
[1769008153193,11.0657363,2996.5,2993.2,0.001]
[1769008153194,11.0657363,2996.5,2994.3,9.885035]
[1769008153396,1.10677363,2996.4,2994.4,0.9885035]
[1769008153704,1.10677363,2996.4,2993.5,0.128]
[1769008153705,10.73182476,2996.2,2993.5,10.80478527]
[1769008154008,10.73182476,2996.0,2993.2,3.34182504]
[1769008154184,10.73182476,2996.0,2993.2,0.001]
[1769008154369,10.73182476,2995.8,2993.2,0.001]
[1769008154570,10.73182476,2995.6,2993.2,0.001]
[1769008154770,10.73182476,2995.4,2993.2,0.001]
[1769008155091,10.73182476,2995.2,2993.2,0.001]
[1769008155266,0.552,2995.3,2993.2,0.001]
[1769008155267,10.73182476,2995.0,2993.2,0.001]
[1769008155587,11.28382476,2995.0,2993.2,0.001]
[1769008155814,10.71915781,2994.7,2993.2,0.001]
[1769008156113,0.552,2994.6,2993.2,0.001]
[1769008156391,11.27115781,2994.6,2992.0,3.34219918]
[1769008156568,11.27115781,2994.6,2992.2,3.34194941]
[1769008156764,11.27115781,2994.6,2991.8,0.001]
[1769008156960,11.84627359,2994.5,2992.3,3.3418948]
[1769008157168,11.84627359,2994.5,2992.3,6.6838057]
[1769008157362,11.84627359,2994.5,2991.9,1.09146332]
[1769008157363,0.552,2994.4,2992.1,3.34205531]
[1769008157581,0.552,2994.4,2992.3,3.34185152]
[1769008157795,0.552,2994.3,2992.1,9.65258]
[1769008157977,0.72311344,2994.2,2992.2,1.62707602]
[1769008158293,0.72311344,2994.2,2992.1,5.1]
[1769008159209,0.72311344,2994.2,2992.1,3.628482]
[1769008159708,0.72311344,2994.2,2992.1,2.697482]
[1769008159871,6.6798036,2994.1,2992.1,3.34211797]
[1769008160194,17.39896141,2994.1,2992.3,0.001]
[1769008160402,12.34543736,2994.0,2992.3,0.001]
[1769008160599,12.34543736,2994.0,2991.8,0.001]
[1769008160600,10.71915781,2993.8,2991.8,0.001]
[1769008160894,10.71915781,2993.4,2991.4,0.001]
[1769008161096,10.71915781,2993.2,2991.4,0.001]
[1769008161812,10.71915781,2993.2,2989.5,1.65884061]
[1769008161813,10.71915781,2992.7,2989.5,6.69002529]
[1769008161979,0.552,2992.6,2989.6,10.91363325]
[1769008162178,0.552,2992.6,2989.9,5.610271]
[1769008162370,1.12711578,2992.5,2990.1,3.270575]
[1769008162814,0.552,2992.4,2990.1,3.270575]
[1769008163117,0.552,2992.4,2990.1,3.878108]
[1769008163404,11.27115781,2992.4,2990.1,3.096073]
[1769008163790,6.6838218,2992.3,2990.2,3.3442579]
[1769008164103,0.552,2992.2,2990.4,7.528119]
[1769008164312,0.552,2992.2,2990.3,0.64403309]
[1769008164483,0.552,2992.2,2990.4,5.431755]
[1769008164819,1.23982736,2992.3,2990.4,6.429994]
[1769008165010,3.34124093,2992.9,2990.6,21.227918]
[1769008165179,6.68248186,2992.9,2990.6,3.569323]
[1769008165512,6.68248186,2992.9,2990.5,0.42211582]
[1769008165513,3.89324093,2992.9,2990.9,16.367764]
[1769008165685,3.34045964,2993.6,2991.0,10.91363325]
[1769008165890,3.34068283,2993.4,2991.5,4.858428]
[1769008166091,6.68136566,2993.4,2991.5,2.488776]
[1769008166316,3.34068283,2993.4,2991.5,3.073196]
[1769008166519,3.34060601,2993.5,2991.5,3.073196]
[1769008167028,6.68121202,2993.5,2991.5,3.89968]
[1769008167327,6.68121202,2993.5,2991.4,6.68583272]
[1769008167328,3.3398837,2994.2,2991.6,0.64403309]
[1769008167528,11.27115781,2994.1,2991.6,0.64403309]
[1769008168030,10.71915781,2993.9,2991.7,3.34258114]
[1769008168224,6.68002672,2994.0,2991.9,10.91363325]
[1769008168527,7.68200896,2994.0,2992.1,2.423908]
[1769008168827,21.74118013,2994.0,2992.0,0.42211582]
[1769008169030,10.71915781,2993.9,2991.7,3.34258114]
[1769008169633,10.71915781,2993.9,2991.6,0.64403309]
[1769008169936,10.71915781,2993.7,2990.9,16.25302925]
[1769008170235,10.71915781,2993.7,2990.8,6.687174]
[1769008170236,0.552,2993.6,2991.3,10.91363325]
[1769008170422,0.552,2993.6,2991.4,2.131094]
[1769008170800,11.27115781,2993.6,2990.8,10.030761]
[1769008171132,11.84627359,2993.5,2991.0,8.834355]
[1769008171817,11.84627359,2993.5,2991.0,2.58691]
[1769008172031,4.46771667,2993.5,2991.4,25.861348]
[1769008172201,6.68120178,2993.5,2991.4,19.501264]
[1769008172400,6.68120178,2993.5,2991.4,11.532266]
[1769008172819,6.68320178,2993.5,2991.4,4.692067]
[1769008173015,0.002,2993.5,2991.5,10.91363325]
[1769008173336,0.002,2993.5,2992.0,25.52875325]
[1769008173639,0.002,2993.7,2992.5,10.91363325]
[1769008173937,0.002,2994.9,2992.9,23.94619925]
[1769008174145,0.002,2994.9,2993.0,4.614147]
[1769008174304,0.002,2994.9,2992.9,10.91363325]
[1769008174509,0.002,2994.9,2992.8,6.68270514]
[1769008174721,10.71915781,2994.8,2992.9,0.66827051]
[1769008174929,10.71915781,2994.8,2992.7,3.34144055]
[1769008175340,10.71915781,2994.8,2992.3,3.34181643]
[1769008175508,10.71915781,2994.8,2992.5,6.58916561]
[1769008175839,10.71915781,2994.8,2992.6,3.34157565]
[1769008176059,17.39762309,2994.7,2992.2,6.68404518]
[1769008176201,1.73976231,2994.6,2992.5,10.806709]
[1769008176412,1.73976231,2994.6,2992.6,38.33200825]
[1769008176660,3.33916505,2994.8,2992.7,7.437073]
[1769008176811,3.34102505,2994.9,2992.8,29.12132125]
[1769008177011,3.34102505,2994.9,2992.9,12.68508]
[1769008177215,0.002,2994.9,2993.0,17.533122]
[1769008177576,0.002,2994.9,2993.1,0.89636151]
[1769008177717,3.34100964,2994.9,2992.8,22.85876325]
[1769008178043,0.002,2994.9,2992.9,8.869305]
[1769008178220,10.72115781,2994.9,2992.4,0.552]
[1769008179059,10.71915781,2994.7,2992.4,3.34169741]
[1769008179254,0.552,2994.6,2992.5,3.3416182]
[1769008179414,11.84627359,2994.5,2992.6,0.33416182]
[1769008179610,11.84627359,2994.5,2991.4,10.91363325]
[1769008179809,11.84627359,2994.5,2991.8,3.34240709]
[1769008180058,10.71915781,2994.3,2991.8,3.34242726]
[1769008180222,10.71915781,2994.3,2991.4,10.91363325]